[Event "ETCC Women 2013"]
[Site "Warsaw"]
[Date "2013.11.15"]
[Round "7"]
[White "Khotenashvili, Bela"]
[Black "Rajlich, Iweta"]
[Result "1-0"]
[ECO "D11"]
[WhiteElo "2524"]
[BlackElo "2404"]
[PlyCount "89"]
[EventDate "2013.??.??"]
[EventCountry "POL"]
[WhiteTeam "Georgia"]
[BlackTeam "Poland"]
[WhiteTeamCountry "GEO"]
[BlackTeamCountry "POL"]
[TimeControl "40/5400+30:1800+30"]

1. d4 {[%emt 0:00:00]} d5 {[%emt 0:00:00]} 2. Nf3 {[%emt 0:00:14]} c6 {[%emt 0:
00:00]} 3. c4 {[%emt 0:00:35]} Nf6 {[%emt 0:00:00]} 4. e3 {[%emt 0:00:31]} g6 {
[%emt 0:00:00]} 5. Nc3 {[%emt 0:01:12]} Bg7 {[%emt 0:00:00]} 6. Be2 {[%emt 0:
00:39]} O-O {[%emt 0:00:04]} 7. O-O {[%emt 0:00:55]} a6 {[%emt 0:00:46]} 8. a4
{[%emt 0:03:11]} a5 {[%emt 0:00:26]} 9. Qb3 {[%emt 0:02:50]} e6 {[%emt 0:00:57]
} 10. Bd2 {[%emt 0:12:15]} Nbd7 {[%emt 0:01:43]} 11. Rfd1 {[%emt 0:03:07]} b6 {
[%emt 0:03:30]} 12. Rac1 {[%emt 0:07:45]} Rb8 {[%emt 0:05:27]} 13. Bd3 {[%emt
0:25:48]} Bb7 {[%emt 0:01:35]} 14. cxd5 {[%emt 0:06:26]} exd5 {[%emt 0:07:21]}
15. Re1 {[%emt 0:06:26]} c5 {[%emt 0:18:20]} 16. Bb5 {[%emt 0:03:29]} Ne4 {
[%emt 0:05:14]} 17. Rcd1 {[%emt 0:09:13]} c4 {[%emt 0:04:32]} 18. Qc2 {[%emt 0:
00:59]} Rc8 {[%emt 0:03:35]} 19. Bc1 {[%emt 0:00:29]} Nd6 {[%emt 0:07:19]} 20.
Nd2 {[%emt 0:01:55]} Nxb5 {[%emt 0:02:00]} 21. axb5 {[%emt 0:00:02]} Re8 {
[%emt 0:01:38]} 22. Nf1 {[%emt 0:00:26]} Nf8 {[%emt 0:08:33]} 23. Re2 {[%emt 0:
05:33]} Ne6 {[%emt 0:00:55]} 24. f4 {[%emt 0:00:39]} Qd7 {[%emt 0:03:10]} 25.
h3 {[%emt 0:00:38]} Bf8 {[%emt 0:02:30]} 26. Nh2 {[%emt 0:01:20]} Ng7 {[%emt 0:
05:57]} 27. g4 {[%emt 0:02:39]} Bb4 {[%emt 0:02:30]} 28. Qb1 {[%emt 0:03:34]}
h5 {[%emt 0:04:07]} 29. Rg2 {[%emt 0:00:25]} hxg4 {[%emt 0:00:56]} 30. hxg4 {
[%emt 0:00:02]} Rc7 {[%emt 0:00:56]} 31. Nf3 {[%emt 0:00:27]} Bxc3 {[%emt 0:01:
56]} 32. bxc3 {[%emt 0:00:01]} Re4 {[%emt 0:00:35]} 33. Kf2 {[%emt 0:00:19]}
Qe8 {[%emt 0:00:28]} 34. Ng5 {[%emt 0:02:10]} Rce7 {[%emt 0:00:49]} 35. Nxe4 {
[%emt 0:00:02]} Rxe4 {[%emt 0:00:05]} 36. Rh1 {[%emt 0:00:14]} f6 {[%emt 0:04:
04]} 37. Rgh2 {[%emt 0:00:14]} Qd7 {[%emt 0:01:24]} 38. Rh8+ {[%emt 0:00:14]}
Kf7 {[%emt 0:00:03]} 39. Ba3 {[%emt 0:01:54]} Qxg4 {[%emt 0:02:51]} 40. Rf8+ {
[%emt 0:00:00]} Ke6 {[%emt 0:00:00]} 41. Rh7 {[%emt 0:11:02]} g5 {[%emt 0:21:
17]} 42. Qg1 {[%emt 0:03:54]} Rxf4+ {[%emt 0:00:08]} 43. exf4 {[%emt 0:00:05]}
Qxf4+ {[%emt 0:00:02]} 44. Ke2 {[%emt 0:00:13]} Qe4+ {[%emt 0:01:44]} 45. Qe3 {
[%emt 0:00:05]} 1-0

[Event "ETCC Women 2013"]
[Site "Warsaw"]
[Date "2013.11.15"]
[Round "7"]
[White "Kiolbasa, Oliwia"]
[Black "Kursova, Maria"]
[Result "1-0"]
[ECO "B47"]
[WhiteElo "1982"]
[BlackElo "2339"]
[PlyCount "105"]
[EventDate "2013.??.??"]
[EventCountry "POL"]
[WhiteTeam "Poland"]
[BlackTeam "Armenia"]
[WhiteTeamCountry "POL"]
[BlackTeamCountry "ARM"]
[TimeControl "40/5400+30:1800+30"]

1. e4 c5 {[%emt 0:00:00]} 2. Nf3 {[%emt 0:00:00]} e6 {[%emt 0:00:00]} 3. d4 {
[%emt 0:00:00]} cxd4 {[%emt 0:00:00]} 4. Nxd4 {[%emt 0:00:00]} Nc6 {[%emt 0:00:
03]} 5. Nc3 {[%emt 0:00:13]} Qc7 {[%emt 0:00:14]} 6. Be2 {[%emt 0:00:16]} a6 {
[%emt 0:00:29]} 7. O-O {[%emt 0:00:20]} Nf6 {[%emt 0:00:16]} 8. Be3 {[%emt 0:
00:19]} Be7 {[%emt 0:00:37]} 9. f4 {[%emt 0:00:18]} d6 {[%emt 0:00:42]} 10. Kh1
{[%emt 0:00:19]} O-O {[%emt 0:00:44]} 11. Bf3 {[%emt 0:00:41]} Rb8 {[%emt 0:10:
57]} 12. a4 {[%emt 0:01:46]} Nd7 {[%emt 0:08:59]} 13. Qd2 {[%emt 0:07:00]} Re8
{[%emt 0:14:09]} 14. Qf2 {[%emt 0:00:36]} Nxd4 {[%emt 0:06:08]} 15. Bxd4 {
[%emt 0:00:44]} b6 {[%emt 0:02:33]} 16. f5 {[%emt 0:09:43]} Bf6 {[%emt 0:06:19]
} 17. Bh5 {[%emt 0:09:39]} Bb7 {[%emt 0:20:47]} 18. fxe6 {[%emt 0:05:38]} Rxe6
{[%emt 0:00:10]} 19. Bg4 {[%emt 0:00:14]} Re7 {[%emt 0:00:34]} 20. Bxd7 {[%emt
0:00:47]} Bxd4 {[%emt 0:00:12]} 21. Qxd4 {[%emt 0:00:11]} Rxd7 {[%emt 0:00:20]}
22. Rf5 {[%emt 0:05:32]} Re8 {[%emt 0:03:26]} 23. Rd1 {[%emt 0:01:26]} Bc6 {
[%emt 0:03:00]} 24. b4 {[%emt 0:11:49]} h6 {[%emt 0:05:50]} 25. b5 {[%emt 0:06:
08]} axb5 {[%emt 0:00:07]} 26. axb5 {[%emt 0:00:29]} Bb7 {[%emt 0:00:05]} 27.
Rd3 {[%emt 0:06:03]} Re6 {[%emt 0:05:50]} 28. Rg3 {[%emt 0:01:10]} Re5 {[%emt
0:01:11]} 29. h3 {[%emt 0:01:45]} Rde7 {[%emt 0:05:03]} 30. Kh2 {[%emt 0:03:38]
} R7e6 {[%emt 0:01:37]} 31. Nd5 {[%emt 0:04:27]} Qd8 {[%emt 0:03:37]} 32. Nf6+
{[%emt 0:03:30]} Kh8 {[%emt 0:00:19]} 33. Nh5 {[%emt 0:00:53]} Bxe4 {[%emt 0:
00:55]} 34. Rxf7 {[%emt 0:06:10]} Bg6 {[%emt 0:00:10]} 35. Rxg7 {[%emt 0:02:23]
} Bxh5 {[%emt 0:00:14]} 36. Qxb6 {[%emt 0:03:14]} Qf8 {[%emt 0:01:28]} 37. Qc7
{[%emt 0:03:33]} Re7 {[%emt 0:00:17]} 38. Qxd6 {[%emt 0:00:31]} Qxg7 {[%emt 0:
00:12]} 39. Rxg7 {[%emt 0:00:07]} Kxg7 {[%emt 0:00:03]} 40. b6 {[%emt 0:00:00]}
R5e6 {[%emt 0:00:00]} 41. Qd5 {[%emt 0:01:56]} Bf7 {[%emt 0:11:26]} 42. b7 {
[%emt 0:01:21]} Re8 {[%emt 0:00:27]} 43. Qb3 {[%emt 0:01:42]} Rc6 {[%emt 0:10:
32]} 44. b8=Q {[%emt 0:08:29]} Rxb8 {[%emt 0:00:17]} 45. Qxb8 {[%emt 0:00:06]}
Rxc2 {[%emt 0:00:06]} 46. Qe5+ {[%emt 0:00:41]} Kh7 {[%emt 0:01:46]} 47. Qe4+ {
[%emt 0:00:42]} Bg6 {[%emt 0:00:03]} 48. Qb7+ {[%emt 0:00:41]} Kh8 {[%emt 0:00:
50]} 49. Kg3 {[%emt 0:00:46]} Bh7 {[%emt 0:07:51]} 50. Kg4 {[%emt 0:02:00]} Re2
{[%emt 0:00:44]} 51. Qc8+ {[%emt 0:02:20]} Kg7 {[%emt 0:01:09]} 52. Qc3+ {
[%emt 0:00:55]} Kf7 {[%emt 0:01:20]} 53. Qf3+ {[%emt 0:00:15]} 1-0

[Event "ETCC Women 2013"]
[Site "Warsaw"]
[Date "2013.11.15"]
[Round "7"]
[White "Kosteniuk, Alexandra"]
[Black "Gara, Ticia"]
[Result "1-0"]
[ECO "B22"]
[WhiteElo "2510"]
[BlackElo "2350"]
[PlyCount "113"]
[EventDate "2013.??.??"]
[EventCountry "POL"]
[WhiteTeam "Russia"]
[BlackTeam "Hungary"]
[WhiteTeamCountry "RUS"]
[BlackTeamCountry "HUN"]
[TimeControl "40/5400+30:1800+30"]

1. e4 {[%emt 0:00:00]} c5 {[%emt 0:00:00]} 2. c3 {[%emt 0:00:00]} Nf6 {[%emt 0:
01:40]} 3. e5 {[%emt 0:00:01]} Nd5 {[%emt 0:00:30]} 4. Nf3 {[%emt 0:00:41]} Nc6
{[%emt 0:04:36]} 5. Bc4 Nb6 6. Bb3 d5 {[%emt 0:15:17]} 7. exd6 {[%emt 0:01:17]}
Qxd6 {[%emt 0:02:42]} 8. O-O {[%emt 0:00:47]} g6 {[%emt 0:05:02]} 9. Na3 {
[%emt 0:11:06]} Bg7 {[%emt 0:05:52]} 10. Ng5 {[%emt 0:03:50]} O-O {[%emt 0:06:
20]} 11. Ne4 {[%emt 0:03:18]} Qe5 {[%emt 0:00:45]} 12. d3 {[%emt 0:02:42]} Nd7
{[%emt 0:03:58]} 13. Qf3 {[%emt 0:09:22]} Qf5 {[%emt 0:12:59]} 14. Qg3 {[%emt
0:07:38]} Nf6 {[%emt 0:03:19]} 15. Re1 {[%emt 0:02:48]} b6 {[%emt 0:05:45]} 16.
Nb5 {[%emt 0:13:58]} Bb7 {[%emt 0:11:25]} 17. Ng5 {[%emt 0:01:34]} Rad8 {[%emt
0:04:15]} 18. Ne6 {[%emt 0:10:12]} Rxd3 {[%emt 0:02:13]} 19. f3 {[%emt 0:00:34]
} Rc8 {[%emt 0:04:03]} 20. Nxg7 {[%emt 0:03:31]} Kxg7 {[%emt 0:00:03]} 21. Bc2
{[%emt 0:00:35]} c4 {[%emt 0:01:12]} 22. Bxd3 {[%emt 0:00:18]} cxd3 {[%emt 0:
00:24]} 23. Qg5 {[%emt 0:00:56]} Rd8 {[%emt 0:01:30]} 24. Qxf5 {[%emt 0:09:13]}
gxf5 {[%emt 0:00:04]} 25. Bf4 {[%emt 0:00:23]} Rd5 {[%emt 0:03:28]} 26. Nd4 {
[%emt 0:02:38]} Nxd4 {[%emt 0:00:36]} 27. cxd4 {[%emt 0:00:02]} Rxd4 {[%emt 0:
01:41]} 28. Rxe7 {[%emt 0:00:45]} Bxf3 {[%emt 0:01:11]} 29. gxf3 {[%emt 0:03:
22]} Rxf4 {[%emt 0:00:03]} 30. Re3 {[%emt 0:00:29]} Rc4 {[%emt 0:01:15]} 31.
Rxd3 {[%emt 0:00:49]} Rc2 {[%emt 0:00:07]} 32. Rad1 {[%emt 0:06:16]} Rxb2 {
[%emt 0:00:05]} 33. R1d2 {[%emt 0:00:05]} Rb1+ {[%emt 0:01:05]} 34. Kf2 {[%emt
0:00:01]} Nh5 {[%emt 0:01:11]} 35. Ra3 {[%emt 0:01:41]} Nf4 {[%emt 0:02:11]}
36. Rxa7 {[%emt 0:01:35]} Kg6 {[%emt 0:00:36]} 37. Ra4 {[%emt 0:02:27]} Ne6 {
[%emt 0:00:17]} 38. Ra3 {[%emt 0:00:56]} Nc5 {[%emt 0:00:31]} 39. Ra8 {[%emt 0:
01:32]} Kg7 {[%emt 0:00:43]} 40. Rad8 {[%emt 0:00:00]} Kg6 {[%emt 0:00:00]} 41.
Rg8+ {[%emt 0:06:59]} Kf6 {[%emt 0:00:58]} 42. Ke3 {[%emt 0:02:18]} Re1+ {
[%emt 0:01:33]} 43. Kf2 {[%emt 0:04:29]} Rb1 {[%emt 0:01:49]} 44. Rg2 {[%emt 0:
00:06]} f4 {[%emt 0:04:29]} 45. Rg1 {[%emt 0:00:24]} Rb4 {[%emt 0:00:38]} 46.
Re1 {[%emt 0:00:50]} Kf5 {[%emt 0:06:19]} 47. Ree2 {[%emt 0:00:33]} Na4 {[%emt
0:02:25]} 48. Rd5+ {[%emt 0:02:37]} Kf6 {[%emt 0:03:28]} 49. Red2 {[%emt 0:00:
46]} Nc3 {[%emt 0:03:58]} 50. R5d3 {[%emt 0:01:32]} Rc4 {[%emt 0:02:30]} 51.
Rd6+ {[%emt 0:00:15]} Ke5 {[%emt 0:01:12]} 52. Rxb6 {[%emt 0:00:17]} Ra4 {
[%emt 0:00:21]} 53. Rb7 {[%emt 0:04:01]} f6 {[%emt 0:01:54]} 54. Rxh7 {[%emt 0:
00:22]} Nxa2 {[%emt 0:00:08]} 55. h4 {[%emt 0:01:13]} Nc3 {[%emt 0:04:20]} 56.
Rc7 {[%emt 0:00:10]} Ra3 {[%emt 0:02:25]} 57. h5 {[%emt 0:00:25]} 1-0

[Event "ETCC Women 2013"]
[Site "Warsaw"]
[Date "2013.11.15"]
[Round "7"]
[White "Kristinardottir, Elsa Maria"]
[Black "Orehek, Spela"]
[Result "1-0"]
[ECO "C54"]
[WhiteElo "1819"]
[BlackElo "2026"]
[PlyCount "57"]
[EventDate "2013.??.??"]
[EventCountry "POL"]
[WhiteTeam "Iceland"]
[BlackTeam "Slovenia"]
[WhiteTeamCountry "ISL"]
[BlackTeamCountry "SLO"]
[TimeControl "40/5400+30:1800+30"]

1. e4 {[%emt 0:00:00]} e5 {[%emt 0:00:00]} 2. Nf3 {[%emt 0:00:00]} Nc6 {[%emt
0:00:03]} 3. Bc4 {[%emt 0:00:00]} Bc5 {[%emt 0:00:23]} 4. c3 {[%emt 0:00:55]}
Nf6 {[%emt 0:00:27]} 5. d4 {[%emt 0:00:12]} exd4 {[%emt 0:00:25]} 6. e5 {[%emt
0:00:13]} d5 {[%emt 0:02:16]} 7. Bb5 {[%emt 0:00:39]} Ne4 {[%emt 0:00:18]} 8.
cxd4 {[%emt 0:00:43]} Bb4+ {[%emt 0:00:29]} 9. Bd2 {[%emt 0:00:10]} Nxd2 {
[%emt 0:00:12]} 10. Bxc6+ {[%emt 0:00:36]} bxc6 {[%emt 0:00:08]} 11. Nbxd2 {
[%emt 0:00:14]} O-O {[%emt 0:00:11]} 12. a3 {[%emt 0:02:18]} Bxd2+ {[%emt 0:03:
16]} 13. Nxd2 {[%emt 0:02:22]} Ba6 {[%emt 0:06:34]} 14. Qg4 {[%emt 0:03:06]} c5
{[%emt 0:33:37]} 15. dxc5 {[%emt 0:09:34]} Qe7 {[%emt 0:00:27]} 16. Qd4 {[%emt
0:01:19]} f6 {[%emt 0:12:24]} 17. O-O-O {[%emt 0:05:06]} c6 {[%emt 0:01:23]}
18. exf6 {[%emt 0:02:38]} Rxf6 {[%emt 0:00:10]} 19. Rhe1 {[%emt 0:01:31]} Qc7 {
[%emt 0:00:23]} 20. g3 {[%emt 0:00:53]} Rb8 {[%emt 0:02:16]} 21. f4 {[%emt 0:
02:13]} Rb5 {[%emt 0:12:32]} 22. Re8+ {[%emt 0:03:34]} Rf8 {[%emt 0:02:49]} 23.
Rde1 {[%emt 0:01:39]} Rxe8 {[%emt 0:05:47]} 24. Rxe8+ {[%emt 0:00:11]} Kf7 {
[%emt 0:00:06]} 25. Re3 {[%emt 0:03:44]} Qa5 {[%emt 0:01:46]} 26. b4 {[%emt 0:
01:19]} Qc7 {[%emt 0:01:16]} 27. Nf3 {[%emt 0:00:19]} Bc8 {[%emt 0:01:28]} 28.
Ng5+ {[%emt 0:01:27]} Kg8 {[%emt 0:00:08]} 29. Re8# 1-0

[Event "ETCC Women 2013"]
[Site "Warsaw"]
[Date "2013.11.15"]
[Round "7"]
[White "Lanchava, Tea"]
[Black "Mamedjarova, Zeinab"]
[Result "0-1"]
[ECO "A01"]
[WhiteElo "2289"]
[BlackElo "2236"]
[PlyCount "84"]
[EventDate "2013.??.??"]
[EventCountry "POL"]
[WhiteTeam "Netherlands"]
[BlackTeam "Azerbaijan"]
[WhiteTeamCountry "NED"]
[BlackTeamCountry "AZE"]
[TimeControl "40/5400+30:1800+30"]

1. b3 {[%emt 0:00:00]} c5 {[%emt 0:04:19]} 2. Bb2 {[%emt 0:01:14]} d6 {[%emt 0:
01:15]} 3. f4 {[%emt 0:01:30]} b6 {[%emt 0:05:32]} 4. Nf3 {[%emt 0:01:13]} Bb7
{[%emt 0:00:06]} 5. e3 {[%emt 0:01:06]} Nf6 {[%emt 0:01:35]} 6. Be2 {[%emt 0:
01:25]} e6 {[%emt 0:04:50]} 7. O-O {[%emt 0:00:52]} Be7 {[%emt 0:00:06]} 8. Qe1
{[%emt 0:01:14]} O-O {[%emt 0:01:52]} 9. Qg3 {[%emt 0:03:45]} Nc6 {[%emt 0:01:
58]} 10. d3 {[%emt 0:01:26]} Nb4 {[%emt 0:13:54]} 11. Ne1 {[%emt 0:03:15]} Ne8
{[%emt 0:01:45]} 12. Qh3 {[%emt 0:07:17]} Bf6 {[%emt 0:02:33]} 13. c3 {[%emt 0:
01:57]} a5 {[%emt 0:10:02]} 14. d4 {[%emt 0:08:19]} Nc6 {[%emt 0:05:16]} 15.
Nd2 {[%emt 0:03:00]} a4 {[%emt 0:03:22]} 16. bxa4 {[%emt 0:08:35]} Rxa4 {[%emt
0:00:11]} 17. f5 {[%emt 0:00:26]} exf5 {[%emt 0:06:21]} 18. Qxf5 {[%emt 0:02:
59]} Bg5 {[%emt 0:00:39]} 19. Nc2 {[%emt 0:06:27]} cxd4 {[%emt 0:03:50]} 20.
cxd4 {[%emt 0:02:00]} Nb4 {[%emt 0:02:19]} 21. Bc4 {[%emt 0:18:15]} Ra5 {[%emt
0:13:04]} 22. Bxf7+ {[%emt 0:00:41]} Kh8 {[%emt 0:00:02]} 23. Qh3 {[%emt 0:02:
39]} Nf6 {[%emt 0:10:32]} 24. Bb3 {[%emt 0:02:07]} Nxc2 {[%emt 0:02:18]} 25.
Bxc2 {[%emt 0:00:09]} Bh6 {[%emt 0:02:24]} 26. d5 {[%emt 0:05:05]} Rxd5 {[%emt
0:01:10]} 27. Bxf6 {[%emt 0:02:59]} Rxf6 {[%emt 0:01:00]} 28. Rxf6 {[%emt 0:01:
26]} Rxd2 {[%emt 0:01:11]} 29. Rxh6 {[%emt 0:04:44]} gxh6 {[%emt 0:00:15]} 30.
e4 {[%emt 0:07:30]} Rxc2 {[%emt 0:00:12]} 31. Qf5 {[%emt 0:01:15]} Rc5 {[%emt
0:00:56]} 32. Qf4 {[%emt 0:00:13]} Re5 {[%emt 0:00:38]} 33. Rf1 {[%emt 0:00:19]
} Rxe4 {[%emt 0:00:27]} 34. Qxh6 {[%emt 0:00:08]} Re8 {[%emt 0:00:30]} 35. Rf7
{[%emt 0:00:08]} Re1+ {[%emt 0:00:11]} 36. Kf2 {[%emt 0:00:05]} Re2+ {[%emt 0:
00:16]} 37. Kf1 {[%emt 0:00:44]} Re1+ {[%emt 0:00:23]} 38. Kf2 {[%emt 0:00:23]}
Re2+ {[%emt 0:00:07]} 39. Kf1 {[%emt 0:00:20]} Bxg2+ {[%emt 0:01:10]} 40. Kg1 {
[%emt 0:00:00]} Re1+ {[%emt 0:00:00]} 41. Kxg2 {[%emt 0:00:46]} Qg8+ {[%emt 0:
01:19]} 42. Kf2 {[%emt 0:00:18]} Qg1+ {[%emt 0:00:13]} 0-1

[Event "ETCC Women 2013"]
[Site "Warsaw"]
[Date "2013.11.15"]
[Round "7"]
[White "Makropoulou, Marina"]
[Black "Savola, Laura"]
[Result "1-0"]
[ECO "C17"]
[WhiteElo "2234"]
[BlackElo "2076"]
[PlyCount "76"]
[EventDate "2013.??.??"]
[EventCountry "POL"]
[WhiteTeam "Greece"]
[BlackTeam "Finland"]
[WhiteTeamCountry "GRE"]
[BlackTeamCountry "FIN"]
[TimeControl "40/5400+30:1800+30"]

1. e4 {[%emt 0:00:00]} e6 {[%emt 0:00:00]} 2. d4 {[%emt 0:00:00]} d5 {[%emt 0:
00:00]} 3. Nc3 {[%emt 0:00:00]} Bb4 {[%emt 0:00:00]} 4. e5 {[%emt 0:00:24]} c5
{[%emt 0:00:11]} 5. dxc5 {[%emt 0:00:55]} Ne7 {[%emt 0:01:00]} 6. Nf3 {[%emt 0:
00:27]} Nbc6 {[%emt 0:01:49]} 7. Bd3 {[%emt 0:00:28]} Ng6 {[%emt 0:07:08]} 8.
O-O {[%emt 0:00:34]} O-O {[%emt 0:17:47]} 9. Bg5 {[%emt 0:13:55]} Qa5 {[%emt 0:
05:16]} 10. Nb5 {[%emt 0:07:01]} Bxc5 {[%emt 0:01:17]} 11. c3 {[%emt 0:01:21]}
Qb6 {[%emt 0:08:10]} 12. b4 {[%emt 0:12:38]} Be7 {[%emt 0:00:09]} 13. Bxe7 {
[%emt 0:00:53]} Ncxe7 {[%emt 0:00:07]} 14. Nbd4 {[%emt 0:05:17]} Bd7 {[%emt 0:
02:55]} 15. Re1 {[%emt 0:03:09]} f6 {[%emt 0:23:11]} 16. Qd2 {[%emt 0:12:56]}
fxe5 {[%emt 0:10:11]} 17. Nxe5 {[%emt 0:00:09]} Nxe5 {[%emt 0:00:10]} 18. Rxe5
{[%emt 0:00:04]} Rf6 {[%emt 0:00:13]} 19. Rae1 {[%emt 0:18:58]} Raf8 {[%emt 0:
06:30]} 20. R1e2 {[%emt 0:01:42]} Ng6 {[%emt 0:03:39]} 21. Bxg6 {[%emt 0:00:33]
} Rxg6 {[%emt 0:00:02]} 22. Qe3 {[%emt 0:13:51]} Rff6 {[%emt 0:04:33]} 23. g3 {
[%emt 0:00:22]} a6 {[%emt 0:05:03]} 24. h4 {[%emt 0:00:20]} Bb5 {[%emt 0:01:50]
} 25. Re1 {[%emt 0:01:12]} Bd7 {[%emt 0:00:43]} 26. Kh2 {[%emt 0:01:35]} Rf8 {
[%emt 0:00:24]} 27. f4 {[%emt 0:00:35]} a5 {[%emt 0:00:22]} 28. a3 {[%emt 0:00:
40]} axb4 {[%emt 0:00:04]} 29. axb4 {[%emt 0:00:07]} Rc8 {[%emt 0:00:57]} 30.
Qf3 {[%emt 0:02:42]} Qa6 {[%emt 0:00:42]} 31. R1e2 {[%emt 0:00:48]} Qc4 {[%emt
0:00:27]} 32. R2e3 {[%emt 0:00:20]} Qa2+ 33. Qe2 {[%emt 0:00:33]} Qxe2+ {[%emt
0:00:50]} 34. Nxe2 {[%emt 0:00:02]} Rf6 {[%emt 0:00:23]} 35. Nd4 {[%emt 0:00:
12]} Kf7 {[%emt 0:00:18]} 36. h5 {[%emt 0:01:05]} g6 {[%emt 0:00:33]} 37. h6 {
[%emt 0:00:22]} Ke7 {[%emt 0:00:59]} 38. Rxd5 {[%emt 0:00:29]} Bc6 {[%emt 0:01:
07]} 1-0

[Event "ETCC Women 2013"]
[Site "Warsaw"]
[Date "2013.11.15"]
[Round "7"]
[White "Mammadova, Gulnar"]
[Black "Peng, Zhaoqin"]
[Result "1/2-1/2"]
[ECO "B23"]
[WhiteElo "2354"]
[BlackElo "2378"]
[PlyCount "59"]
[EventDate "2013.??.??"]
[EventCountry "POL"]
[WhiteTeam "Azerbaijan"]
[BlackTeam "Netherlands"]
[WhiteTeamCountry "AZE"]
[BlackTeamCountry "NED"]
[TimeControl "40/5400+30:1800+30"]

1. e4 {[%emt 0:00:00]} c5 {[%emt 0:00:00]} 2. Nc3 {[%emt 0:00:00]} e6 {[%emt 0:
00:07]} 3. f4 {[%emt 0:01:53]} a6 {[%emt 0:05:14]} 4. a4 {[%emt 0:09:04]} d5 {
[%emt 0:00:26]} 5. d3 {[%emt 0:03:16]} Nc6 {[%emt 0:01:59]} 6. Nf3 {[%emt 0:00:
28]} Nf6 {[%emt 0:04:38]} 7. Be2 {[%emt 0:01:20]} b6 {[%emt 0:06:38]} 8. e5 {
[%emt 0:06:43]} d4 {[%emt 0:04:04]} 9. Nb1 {[%emt 0:09:21]} Nd5 {[%emt 0:00:11]
} 10. O-O {[%emt 0:01:31]} Be7 {[%emt 0:00:51]} 11. c4 {[%emt 0:05:04]} Ndb4 {
[%emt 0:07:41]} 12. Nbd2 {[%emt 0:02:08]} Bb7 {[%emt 0:08:49]} 13. Ne4 {[%emt
0:06:35]} Na5 {[%emt 0:01:02]} 14. Ng3 {[%emt 0:03:32]} h5 {[%emt 0:09:33]} 15.
Ng5 {[%emt 0:05:53]} g6 {[%emt 0:12:00]} 16. Bf3 {[%emt 0:08:07]} Qc7 {[%emt 0:
12:58]} 17. Bxb7 {[%emt 0:06:53]} Nxb7 {[%emt 0:01:40]} 18. N3e4 {[%emt 0:03:
02]} Nd8 {[%emt 0:03:02]} 19. Qf3 {[%emt 0:02:50]} Ra7 {[%emt 0:00:15]} 20. Bd2
{[%emt 0:01:48]} a5 {[%emt 0:00:09]} 21. b3 {[%emt 0:03:04]} Kd7 {[%emt 0:01:
52]} 22. Bxb4 {[%emt 0:03:59]} axb4 {[%emt 0:00:06]} 23. h4 {[%emt 0:00:18]}
Kc8 {[%emt 0:01:49]} 24. Rae1 {[%emt 0:00:36]} Kb8 {[%emt 0:00:59]} 25. Re2 {
[%emt 0:00:35]} Qb7 {[%emt 0:04:23]} 26. Qf2 {[%emt 0:00:41]} Qc7 {[%emt 0:00:
45]} 27. Qf3 {[%emt 0:00:08]} Qb7 {[%emt 0:00:02]} 28. Qf2 {[%emt 0:00:05]} Qc7
{[%emt 0:00:18]} 29. Qf3 {[%emt 0:00:05]} Qb7 {[%emt 0:00:18]} 30. Qf2 1/2-1/2

[Event "ETCC Women 2013"]
[Site "Warsaw"]
[Date "2013.11.15"]
[Round "7"]
[White "Matnadze, Ana"]
[Black "Zaksaite, Salomeja"]
[Result "1-0"]
[ECO "A49"]
[WhiteElo "2373"]
[BlackElo "2200"]
[PlyCount "115"]
[EventDate "2013.??.??"]
[EventCountry "POL"]
[WhiteTeam "Spain"]
[BlackTeam "Lithuania"]
[WhiteTeamCountry "ESP"]
[BlackTeamCountry "LTU"]
[TimeControl "40/5400+30:1800+30"]

1. d4 Nf6 2. Nf3 g6 {[%emt 1:02:59]} 3. g3 d5 {[%emt 0:00:30]} 4. Bg2 Bg7 5.
O-O O-O 6. b3 c5 {[%emt 0:01:30]} 7. e3 Nc6 {[%emt 0:00:00]} 8. Bb2 cxd4 9.
exd4 Bf5 10. Ne5 Rc8 11. c4 Nb4 12. a3 Nc2 13. Ra2 dxc4 14. bxc4 Nd7 15. g4
Nxe5 16. gxf5 Nxc4 17. Qxc2 Ne3 18. Qb3 Nxf1 19. fxg6 hxg6 20. Bxf1 Bxd4 21.
Bc3 Bxc3 22. Nxc3 Qd4 23. Ne2 Qc4 24. Rb2 Qxb3 25. Rxb3 b6 26. f4 Rc5 27. Kf2
Rd8 28. Re3 Kf8 29. Ke1 Rc2 30. h3 Ra2 31. Rc3 Ra1+ 32. Kf2 e6 33. Bg2 Rd2 34.
Bc6 Raa2 35. Bb5 Kg7 36. a4 a6 37. Bxa6 Rxa4 38. Bd3 Rb2 39. Ke3 Ra1 40. Be4
Kf6 41. Rc7 b5 42. Rb7 Re1 43. Bd3 b4 44. Bb5 Kg7 45. Kf2 Rh1 46. Kg2 Rd1 47.
Kf3 Rh1 48. Nd4 Rxh3+ 49. Ke4 Kf6 50. Be8 Rh7 51. Nf3 b3 52. Ng5 Rg7 53. Kf3 e5
54. Bxf7 exf4 55. Ne4+ Ke5 56. Re7+ Kd4 57. Rd7+ Ke5 58. Rd5# 1-0